bitfinex/quotes_SOLUSD_20240717
["timestamp","ask_amount","ask_price","bid_price","bid_amount"]
[1721225826014,0.34,160.68,160.6,6.146]
[1721225826015,6.2251,160.64,160.6,6.146]
[1721225826823,0.17,160.68,160.61,1.24519176]
[1721225827037,6.2251,160.64,160.6,6.146]
[1721225827938,0.34,160.68,160.61,7.4712024]
[1721225828152,0.34,160.68,160.61,1.2451024]
[1721225828332,6.2244,160.66,160.61,6.2261]
[1721225828534,6.2239,160.67,160.62,1.24495322]
[1721225828744,0.34,160.68,160.61,6.2261]
[1721225828923,6.225,160.65,160.6,21.7119]
[1721225829123,6.2251,160.64,160.6,6.146]
[1721225829423,0.17,160.65,160.58,16.1611]
[1721225829617,20.34,160.66,160.58,16.1611]
[1721225829946,6.2258,160.62,160.58,16.1611]
[1721225830445,6.2255,160.63,160.58,22.3884]
[1721225830651,6.2255,160.63,160.58,23.63365831]
[1721225830842,6.2249,160.65,160.59,6.227]
[1721225831037,6.224,160.67,160.61,6.226]
[1721225831248,6.2239,160.68,160.6,15.5659]
[1721225831560,6.2241,160.67,160.61,51.2259]
[1721225832052,5.59361197,160.73,160.63,15.5628]
[1721225832261,6.2234,160.69,160.63,21.7879]
[1721225832551,6.2234,160.69,160.64,6.225]
[1721225832758,5.59361197,160.73,160.61,45.0]
[1721225833340,15.5565,160.71,160.6,21.7926]
[1721225833548,6.2248,160.65,160.6,15.5663]
[1721225834052,0.17,160.7,160.61,7.47113385]
[1721225834261,20.34,160.7,160.6,15.5663]
[1721225834447,0.34,160.7,160.62,15.5638]
[1721225834651,0.34,160.71,160.61,60.5656]
[1721225834855,20.34,160.71,160.58,16.1611]
[1721225835031,20.34,160.71,160.6,6.2266]
[1721225835032,6.2244,160.66,160.6,6.2266]
[1721225835231,15.5577,160.7,160.6,6.2266]
[1721225835232,6.2248,160.65,160.6,6.2266]
[1721225835439,20.34,160.71,160.62,6.2258]
[1721225835656,6.2238,160.68,160.63,1.2448282]
[1721225835936,6.2235,160.68,160.63,1.24487116]
[1721225836132,6.2232,160.69,160.63,1.24487116]
[1721225836339,6.2227,160.71,160.64,17.48144035]
[1721225836562,6.2221,160.72,160.65,1.2446224]
[1721225836943,6.2216,160.73,160.68,6.2234]
[1721225837148,6.2216,160.73,160.69,1.24447291]
[1721225837961,6.2216,160.73,160.67,6.2238]
[1721225838169,15.5516,160.76,160.66,21.7844]
[1721225838346,15.5516,160.76,160.65,6.2246]
[1721225838546,15.5516,160.76,160.64,16.2367]
[1721225838547,49.0635,160.74,160.64,16.2367]
[1721225838972,20.0,160.73,160.64,16.2367]
[1721225839151,6.2238,160.68,160.64,16.2367]
[1721225839473,6.2232,160.69,160.64,22.4617]
[1721225839769,6.2236,160.68,160.64,16.2367]
[1721225840079,6.2244,160.66,160.64,16.2367]
[1721225840265,6.2255,160.63,160.6,15.4073]
[1721225840656,6.225,160.65,160.6,15.4073]
[1721225840970,0.17,160.67,160.6,15.4073]
[1721225841175,0.17,160.68,160.61,1.24496219]
[1721225841348,0.34,160.69,160.61,15.565]
[1721225841858,6.2236,160.68,160.62,7.47077244]
[1721225842051,6.2236,160.68,160.62,6.2258]
[1721225842360,6.2232,160.69,160.64,6.225]
[1721225842567,33.51,160.72,160.63,15.5632]
[1721225842568,6.2236,160.68,160.63,15.5632]
[1721225842879,6.2239,160.67,160.62,6.2254]
[1721225843058,0.17,160.7,160.62,15.5638]
[1721225843259,33.51,160.72,160.62,15.5638]
[1721225843260,0.17,160.71,160.63,45.0]
[1721225843467,6.2216,160.73,160.68,6.2234]
[1721225843771,49.0615,160.76,160.68,6.2234]
[1721225843772,6.222,160.72,160.68,1.24454594]
[1721225843950,6.2217,160.73,160.67,16.6528]
[1721225844155,7.28192696,160.78,160.67,16.6528]
[1721225844156,7.28192696,160.78,160.68,1.24443794]
[1721225844378,7.28192696,160.78,160.67,23.1242]
[1721225844551,6.222,160.72,160.68,1.24442599]
[1721225844754,7.28192696,160.78,160.69,1.24445102]
[1721225844979,6.2209,160.75,160.69,7.46735102]
[1721225845177,6.2214,160.74,160.69,1.24445102]
[1721225845477,6.2217,160.73,160.69,1.24445102]
[1721225845655,6.2213,160.74,160.69,1.24445102]
[1721225846787,6.2212,160.74,160.68,7.46763488]
[1721225847076,6.2224,160.71,160.67,23.1242]
[1721225847283,15.5525,160.75,160.67,23.1242]
[1721225847458,6.2221,160.72,160.67,23.1242]
[1721225847789,0.34,160.76,160.67,23.1242]
[1721225847790,6.2216,160.73,160.67,23.1242]
[1721225848076,6.2216,160.73,160.67,29.348]
[1721225848385,6.2228,160.7,160.67,23.1242]
[1721225848563,6.2223,160.72,160.67,23.1242]
[1721225848767,15.5521,160.75,160.67,23.1242]
[1721225848768,0.17,160.76,160.67,23.1242]
[1721225848987,6.2209,160.75,160.68,16.80327403]
[1721225849492,6.2209,160.75,160.69,6.223]
[1721225849657,6.2202,160.77,160.7,60.5563]
[1721225849860,33.51,160.8,160.7,45.0]
[1721225850081,6.22,160.78,160.72,21.7761]
[1721225850674,49.0576,160.8,160.69,21.7803]
[1721225850889,49.0576,160.8,160.69,15.5576]
[1721225851080,49.0576,160.8,160.7,51.2224]
[1721225851081,6.2204,160.76,160.7,51.2224]
[1721225851271,6.2204,160.76,160.69,15.5576]
[1721225851581,6.22,160.77,160.71,6.222]
[1721225851781,6.2197,160.78,160.73,6.2215]
[1721225851980,7.28192696,160.82,160.74,6.2211]
[1721225851981,6.2193,160.79,160.74,6.2211]
[1721225852161,6.2196,160.79,160.74,1.24395471]
[1721225852467,6.2189,160.8,160.75,23.94321122]
[1721225852666,204.263389,160.85,160.76,7.46422452]
[1721225853067,204.263389,160.85,160.77,1.24388109]
[1721225853387,15.5416,160.86,160.77,7.46358109]
[1721225853388,6.2178,160.83,160.77,7.46358109]
[1721225853773,6.2178,160.83,160.77,1.24388109]
[1721225853977,6.2182,160.82,160.77,1.24388109]
[1721225854288,6.2185,160.81,160.77,1.24388109]
[1721225854489,6.2182,160.82,160.77,1.24388109]
[1721225854983,6.2183,160.82,160.77,1.24388109]
[1721225855184,6.2183,160.82,160.77,7.46378109]
[1721225855387,6.2178,160.83,160.77,7.46378109]
[1721225855592,15.5416,160.86,160.77,7.46378109]
[1721225855593,6.2182,160.82,160.77,7.46378109]
[1721225855795,6.2182,160.82,160.77,1.24388109]
[1721225855981,6.2186,160.81,160.77,1.24388109]
[1721225856181,6.2192,160.8,160.75,16.4784]
[1721225856366,6.2192,160.8,160.76,1.243894]
[1721225856692,6.2182,160.82,160.77,6.22]
[1721225856873,6.2182,160.82,160.76,21.7709]
[1721225857064,6.2182,160.82,160.75,16.4784]
[1721225857065,6.2191,160.8,160.75,16.4784]
[1721225857264,6.2185,160.81,160.75,22.6989]
[1721225857464,6.2193,160.79,160.75,16.4784]
[1721225858070,15.545,160.83,160.75,16.4784]
[1721225858268,6.2203,160.77,160.75,16.4784]
[1721225858483,6.2215,160.74,160.71,15.6841]
[1721225858764,6.2219,160.73,160.71,15.6841]
[1721225859073,33.51,160.8,160.71,15.6841]
[1721225859074,6.222,160.72,160.71,15.6841]
[1721225859289,6.222,160.72,160.66,16.5656]
[1721225859586,6.2216,160.73,160.68,6.2234]
[1721225860093,6.222,160.72,160.66,38.3501]
[1721225860300,6.2225,160.71,160.66,38.3501]
[1721225860668,6.222,160.72,160.66,38.3501]
[1721225860870,6.2224,160.71,160.66,32.1258]
[1721225861190,6.2228,160.7,160.66,16.5656]
[1721225861407,6.2224,160.71,160.66,17.81031461]
[1721225861566,6.562,160.72,160.66,24.03461461]
[1721225861968,0.34,160.72,160.66,33.37081461]
[1721225862189,6.562,160.72,160.66,33.37081461]
[1721225862688,6.562,160.72,160.66,39.59501461]
[1721225862870,33.51,160.76,160.66,33.37081461]
[1721225863067,15.5494,160.78,160.69,15.5577]
[1721225863305,20.0,160.77,160.66,16.5656]
[1721225863594,6.2228,160.7,160.66,16.5656]
[1721225864268,6.2232,160.69,160.66,16.5656]
[1721225864588,6.2228,160.7,160.66,16.5656]
[1721225864793,6.2232,160.69,160.66,16.5656]
[1721225865374,0.17,160.71,160.61,22.79186305]
[1721225865585,6.2247,160.65,160.61,16.3004]
[1721225866073,0.34,160.64,160.61,16.3004]
[1721225866275,6.5651,160.64,160.61,16.3004]
[1721225866472,6.2258,160.62,160.56,12.2747]
[1721225866670,0.34,160.64,160.57,15.6957]
[1721225866980,6.2254,160.63,160.57,21.9234]
[1721225867174,0.34,160.64,160.57,31.2647]
[1721225867378,0.17,160.64,160.58,1.24530465]
[1721225867606,0.34,160.64,160.57,31.2647]
[1721225867777,6.2259,160.62,160.57,37.4924]
[1721225867980,6.2255,160.63,160.57,38.73773206]
[1721225868310,6.2255,160.63,160.57,31.2647]
[1721225868479,6.5651,160.64,160.57,31.2647]
[1721225868676,6.5651,160.64,160.58,1.24526535]
[1721225868889,6.5651,160.64,160.58,6.2271]
[1721225869102,0.34,160.64,160.57,31.2647]
[1721225869403,6.5651,160.64,160.58,7.47268069]
[1721225869584,0.34,160.64,160.57,31.2647]
[1721225869785,6.2255,160.63,160.57,37.4924]
[1721225870401,6.5651,160.64,160.58,1.24532401]
[1721225870703,0.34,160.64,160.59,6.2269]
[1721225870995,6.5651,160.64,160.59,6.2269]
[1721225871299,0.17,160.64,160.6,7.47176306]
[1721225871474,6.2246,160.66,160.6,7.47176306]
[1721225871784,0.17,160.65,160.61,6.2262]
[1721225871971,6.2246,160.66,160.61,6.2262]
[1721225872696,6.394,160.67,160.61,6.2262]
[1721225872903,6.2243,160.66,160.6,7.47150298]
[1721225873090,6.2248,160.65,160.6,7.47150298]
[1721225873288,6.2243,160.66,160.61,6.2261]
[1721225873599,6.2243,160.66,160.62,1.24502184]
[1721225873795,6.2248,160.65,160.62,1.24502184]
[1721225874002,6.2248,160.65,160.6,6.2265]
[1721225874297,6.2248,160.65,160.61,1.24500235]
[1721225874801,6.2258,160.62,160.57,15.6957]
[1721225874990,6.2263,160.61,160.57,15.6957]
[1721225875379,6.2273,160.59,160.57,15.6957]
[1721225875704,6.2263,160.61,160.57,15.6957]
[1721225876000,6.2269,160.6,160.57,15.6957]
[1721225876186,0.17,160.63,160.58,1.24547395]
[1721225876413,6.2268,160.6,160.57,15.6957]
[1721225876614,0.17,160.63,160.57,15.6957]
[1721225876804,0.17,160.63,160.58,1.24542164]
[1721225877314,0.17,160.63,160.57,21.9233]
[1721225877315,0.17,160.63,160.57,15.6957]
[1721225877519,6.2262,160.62,160.58,1.24538095]
[1721225878017,6.3955,160.63,160.58,7.47232461]
[1721225878318,6.2261,160.62,160.57,31.2643]
[1721225878615,0.34,160.64,160.58,1.24534087]
[1721225878810,0.34,160.64,160.57,31.2643]
[1721225878811,6.2259,160.62,160.57,15.5686]
[1721225878998,6.2259,160.62,160.57,21.7963]
[1721225879201,6.2255,160.63,160.58,7.47273468]
[1721225879401,30.0,160.64,160.59,6.2269]
[1721225879599,29.83,160.64,160.57,15.5686]
[1721225879793,29.83,160.64,160.56,6.2281]
[1721225879794,6.2265,160.61,160.56,6.2281]
[1721225880202,0.17,160.63,160.57,1.24534229]
[1721225880404,0.17,160.63,160.55,6.49168963]
[1721225880607,6.2274,160.59,160.53,21.802]
[1721225880902,6.2271,160.59,160.53,21.802]
[1721225881205,6.3967,160.6,160.54,7.47449961]
[1721225881619,6.3967,160.6,160.55,6.2283]
[1721225881828,0.17,160.6,160.55,6.2283]
[1721225882014,0.34,160.6,160.55,6.2283]
[1721225882527,6.5667,160.6,160.55,6.2283]
[1721225882726,6.2255,160.63,160.58,6.2273]
[1721225883032,6.2263,160.61,160.56,7.47341617]
[1721225883229,29.83,160.64,160.57,6.2276]
[1721225883230,6.2259,160.62,160.57,6.2276]
[1721225883439,6.2263,160.61,160.56,7.47331617]
[1721225884203,6.2266,160.6,160.55,21.7995]
[1721225884630,6.2266,160.6,160.56,1.24547634]
[1721225884827,6.2263,160.61,160.56,7.47357634]
[1721225885021,29.83,160.64,160.56,1.24547634]
[1721225885230,52.43664254,160.67,160.57,15.5689]
[1721225885412,52.43664254,160.67,160.58,1.24543594]
[1721225885605,36.87644254,160.67,160.58,1.24543594]
[1721225885836,6.2249,160.65,160.59,21.794]
[1721225886441,7.04644254,160.67,160.61,15.5648]
[1721225886602,6.2243,160.66,160.61,15.5648]
[1721225886801,29.83,160.69,160.6,16.4906]
[1721225887034,7.28192696,160.68,160.6,16.4906]
[1721225887339,6.2254,160.64,160.6,16.4906]
[1721225887627,6.2255,160.63,160.6,16.4906]
[1721225887935,6.2251,160.64,160.6,16.4906]
[1721225888320,29.83,160.66,160.6,16.4906]
[1721225888521,29.83,160.66,160.6,17.73577962]
[1721225888839,82.0896657,160.72,160.61,1.24511525]
[1721225888840,29.83,160.69,160.61,1.24511525]
[1721225889039,36.0534,160.69,160.63,6.2254]
[1721225889214,29.83,160.69,160.64,1.2449488]
[1721225889531,5.5937657,160.72,160.64,6.225]
[1721225889532,35.4237657,160.72,160.64,6.225]
[1721225889738,6.2227,160.71,160.63,15.5628]
[1721225890033,35.4237657,160.72,160.63,16.80762583]
[1721225890208,29.83,160.72,160.63,15.5628]
[1721225890409,29.83,160.72,160.65,6.2244]
[1721225891037,6.2232,160.69,160.64,6.225]
[1721225891338,36.0522,160.72,160.63,15.5628]
[1721225891552,29.83,160.72,160.67,6.2236]
[1721225891842,6.2216,160.73,160.68,17.35989917]
[1721225892047,6.2212,160.74,160.68,17.35989917]
[1721225892219,6.2209,160.75,160.69,6.2231]
[1721225893031,241.13983154,160.78,160.71,6.222]
[1721225893244,6.2212,160.74,160.7,6.1267]
[1721225893431,36.87644254,160.78,160.7,12.3494]
[1721225893737,6.2201,160.77,160.71,7.46664764]
[1721225894143,37.11192696,160.81,160.71,16.79964764]
[1721225894329,6.2201,160.77,160.72,1.24421342]
[1721225894716,6.2197,160.78,160.72,1.24421342]
[1721225894921,29.83,160.81,160.74,15.553]
[1721225895223,35.4237657,160.84,160.76,15.5503]
[1721225895425,5.9188,160.81,160.76,15.5503]
[1721225895611,35.4237657,160.84,160.76,15.5503]
[1721225895816,29.83,160.84,160.76,15.5503]
[1721225896043,6.2186,160.81,160.76,15.5503]
[1721225896350,45.374,160.84,160.75,15.6641]
[1721225896723,29.83,160.84,160.75,16.90799656]
[1721225897026,6.2178,160.83,160.77,6.2199]
[1721225897221,6.2178,160.83,160.76,15.5506]
[1721225897222,6.2193,160.79,160.75,15.6641]
[1721225897529,6.2189,160.8,160.75,16.90794416]
[1721225897728,6.2185,160.81,160.75,37.4359]
[1721225897936,29.83,160.84,160.75,37.4359]
[1721225898135,29.83,160.84,160.75,31.2155]
[1721225898136,6.2192,160.8,160.75,31.2155]
[1721225898648,0.17,160.83,160.76,1.24390455]
[1721225898818,6.3878,160.83,160.78,6.2195]
[1721225899021,20.5920695,160.87,160.77,15.5494]
[1721225899317,15.544,160.84,160.75,15.6641]
[1721225899717,6.2192,160.79,160.75,15.6641]
[1721225900014,6.2196,160.78,160.75,15.6641]
[1721225900241,45.3759,160.82,160.75,15.6641]
[1721225900452,0.34,160.81,160.75,15.6641]
[1721225900628,6.2207,160.76,160.71,30.9375]
[1721225900823,6.2208,160.75,160.71,30.9375]
[1721225901119,6.2208,160.75,160.71,15.382]
[1721225901721,0.17,160.76,160.71,15.382]
[1721225902047,6.2212,160.74,160.71,15.382]
[1721225902436,6.2208,160.75,160.71,15.382]
[1721225903161,6.5601,160.77,160.72,6.2219]
[1721225903315,6.39,160.77,160.72,6.2219]
[1721225903515,6.3905,160.76,160.71,15.382]
[1721225903741,0.17,160.77,160.71,15.382]
[1721225903937,29.83,160.79,160.71,15.382]
[1721225903938,0.34,160.78,160.71,15.382]
[1721225904337,6.2209,160.75,160.71,15.382]
[1721225904536,0.34,160.78,160.71,15.382]
[1721225904537,6.2216,160.73,160.71,15.382]
[1721225904738,6.2216,160.73,160.67,16.4022]
[1721225904739,29.83,160.73,160.67,16.4022]
[1721225904940,0.34,160.72,160.67,16.4022]
[1721225905117,29.83,160.7,160.63,15.815]
[1721225905430,6.5635,160.69,160.63,23.28515645]
[1721225905622,6.2236,160.68,160.63,22.0401]
[1721225905823,0.34,160.69,160.63,15.815]
[1721225906044,0.17,160.67,160.63,15.815]
[1721225906215,6.2236,160.68,160.63,15.815]
[1721225906415,0.17,160.67,160.63,15.815]
[1721225906621,6.5631,160.69,160.63,15.815]
[1721225906836,0.34,160.69,160.63,15.815]
[1721225907050,30.0,160.7,160.63,37.6031]
[1721225907218,0.34,160.69,160.64,6.2248]
[1721225907420,29.83,160.7,160.65,6.2246]
[1721225907614,29.83,160.7,160.63,37.6032]
[1721225907843,0.34,160.69,160.63,37.6032]
[1721225908054,0.34,160.69,160.63,31.378]
[1721225908347,6.2235,160.68,160.63,37.6034]
[1721225908517,6.3932,160.69,160.63,37.6034]
[1721225909347,6.2236,160.68,160.63,31.378]
[1721225909540,0.17,160.67,160.63,15.815]
[1721225909843,6.564,160.67,160.63,15.815]
[1721225910035,29.83,160.66,160.59,23.1524494]
[1721225910243,6.2257,160.63,160.59,16.6595]
[1721225910448,6.2251,160.64,160.59,16.6595]
[1721225910829,6.2255,160.63,160.59,16.6595]
[1721225911045,0.17,160.65,160.59,22.8864]
[1721225911237,6.3947,160.65,160.59,22.8864]
[1721225911625,6.2251,160.64,160.59,22.8864]
[1721225911946,30.0,160.66,160.6,6.2265]
[1721225912331,6.3944,160.66,160.59,33.47137982]
[1721225912520,29.83,160.69,160.61,15.5651]
[1721225912721,29.83,160.69,160.63,6.2253]
[1721225912722,6.2235,160.68,160.63,6.2253]
[1721225913027,6.2228,160.7,160.64,7.46957622]
[1721225913437,29.83,160.72,160.63,15.5629]
[1721225913747,6.2232,160.69,160.64,6.225]
[1721225913948,6.2242,160.67,160.6,60.5663]
[1721225914160,6.2242,160.67,160.62,6.2256]
[1721225914461,6.2232,160.69,160.64,6.2248]
[1721225915037,6.2228,160.7,160.64,6.2248]
[1721225915252,6.2231,160.69,160.63,6.16]
[1721225915438,6.2231,160.69,160.64,6.225]
[1721225915750,6.2228,160.7,160.64,6.225]
[1721225916250,29.83,160.72,160.65,1.24485209]
[1721225916449,6.2223,160.72,160.67,22.4975]
[1721225916625,31.0861,160.85,160.68,1.24458819]
[1721225916626,36.1466,160.78,160.68,1.24458819]
[1721225917024,6.2215,160.74,160.69,6.223]
[1721225917325,15.5508,160.77,160.67,31.8331]
[1721225917526,6.2224,160.71,160.67,16.2737]
[1721225918058,6.222,160.72,160.67,16.2737]
[1721225918423,6.2235,160.68,160.67,16.2737]
[1721225918644,31.1005,160.77,160.63,21.9238]
[1721225918645,29.83,160.72,160.63,21.9238]
[1721225918841,0.17,160.71,160.63,21.9238]
[1721225919052,6.2243,160.66,160.63,21.9238]
[1721225919224,6.2248,160.65,160.63,15.7638]
[1721225919428,6.2244,160.66,160.63,15.7638]
[1721225919951,0.17,160.71,160.64,1.24497946]
[1721225920130,0.34,160.71,160.65,1.24472128]
[1721225920333,0.17,160.71,160.65,1.24472128]
[1721225920529,6.2215,160.74,160.66,6.5717]
[1721225920732,6.2213,160.74,160.68,21.7818]
[1721225920933,6.2216,160.73,160.68,21.7818]
[1721225921362,49.0606,160.77,160.69,7.46751176]
[1721225921363,6.2212,160.74,160.69,7.46751176]
[1721225921664,6.2212,160.74,160.69,1.24441188]
[1721225921963,216.90359724,160.8,160.66,6.5717]
[1721225921964,28.18800824,160.8,160.71,6.2223]
[1721225922151,28.18800824,160.8,160.66,25.2817]
[1721225922152,6.2212,160.74,160.68,6.2234]
[1721225922451,6.2216,160.73,160.68,6.2234]
[1721225922628,6.2219,160.73,160.68,7.4677895]
[1721225922836,6.2213,160.74,160.68,7.4677895]
[1721225923060,6.2216,160.73,160.68,6.2234]
[1721225923353,6.2216,160.73,160.68,7.46778914]
[1721225923736,6.2212,160.74,160.68,7.4677904]
[1721225923936,6.2212,160.74,160.69,6.223]
[1721225924137,6.2212,160.74,160.68,6.2234]
[1721225924363,6.2212,160.74,160.68,7.46779055]
[1721225924659,6.2208,160.76,160.7,6.2224]
[1721225924838,35.4696352,160.8,160.7,6.2224]
[1721225924839,0.34,160.75,160.7,6.2224]
[1721225925035,0.34,160.75,160.68,6.2234]
[1721225925248,6.2216,160.73,160.67,6.2236]
[1721225925560,6.2216,160.73,160.68,6.2235]
[1721225925947,6.2213,160.74,160.68,6.2235]
[1721225926154,6.2213,160.74,160.69,1.24438969]
[1721225926338,6.2213,160.74,160.69,7.46738969]
[1721225926661,15.55,160.78,160.7,6.2226]
[1721225926837,0.34,160.77,160.7,6.2226]
[1721225927259,0.17,160.77,160.71,17.03203301]
[1721225927430,6.3903,160.77,160.71,23.25423301]
[1721225927634,6.2205,160.76,160.71,22.0099]
[1721225928032,12.64020824,160.8,160.71,22.0099]
[1721225928033,6.2197,160.78,160.72,15.5541]
[1721225928234,6.2197,160.78,160.73,1.24413466]
[1721225928454,19.9221352,160.84,160.74,1.24409273]
[1721225928637,6.2197,160.78,160.72,21.7758]
[1721225928839,6.2197,160.78,160.73,7.46553492]
[1721225929263,6.2193,160.79,160.74,7.46513335]
[1721225929558,6.219,160.8,160.75,6.2207]
[1721225929762,6.2181,160.82,160.77,6.22]
[1721225929934,6.2186,160.81,160.77,1.24379371]
[1721225930139,6.218,160.83,160.77,1.24379371]
[1721225930355,6.2181,160.82,160.77,1.24379371]
[1721225930563,15.5419,160.86,160.77,1.24379371]
[1721225930741,6.2176,160.84,160.79,6.2192]
[1721225930944,6.2176,160.84,160.8,1.24362505]
[1721225931138,6.2179,160.83,160.8,1.24362505]
[1721225931634,15.5419,160.86,160.8,1.24362505]
[1721225931864,15.5388,160.89,160.8,7.46242505]
[1721225932061,6.2172,160.85,160.79,15.548]
[1721225932374,6.2177,160.83,160.79,15.548]
[1721225932598,6.2174,160.84,160.79,15.548]
[1721225932934,6.2178,160.83,160.79,15.548]
[1721225933163,6.2174,160.84,160.79,21.7671]
[1721225933639,6.2174,160.84,160.79,15.548]
[1721225933838,15.5388,160.89,160.79,15.548]
[1721225934038,20.34,160.88,160.79,15.548]
[1721225934265,6.2177,160.83,160.78,21.5118]
[1721225934559,20.34,160.88,160.79,52.46273229]
[1721225934560,6.2172,160.85,160.79,52.46273229]
[1721225934770,20.34,160.88,160.79,45.0]
[1721225934980,6.2178,160.83,160.79,45.0]
[1721225935267,6.2174,160.84,160.79,51.2191]
[1721225935436,6.2177,160.83,160.79,45.0]
[1721225935638,6.2181,160.82,160.79,45.0]
[1721225935868,15.5412,160.87,160.79,45.0]
[1721225936048,6.2173,160.85,160.79,51.2189]
[1721225936251,6.2173,160.85,160.8,1.24349404]
[1721225936462,6.2173,160.85,160.79,51.2189]
[1721225936651,0.17,160.86,160.79,45.0]
[1721225937170,6.2181,160.83,160.79,45.0]
[1721225937485,0.17,160.86,160.78,15.2922]
[1721225937780,6.218,160.83,160.78,15.2922]
[1721225937965,6.2184,160.82,160.78,15.2922]
[1721225938155,0.34,160.86,160.78,15.2922]
[1721225938355,6.2174,160.84,160.79,7.46266483]
[1721225938657,6.2174,160.84,160.8,1.24352514]
[1721225938858,0.17,160.86,160.8,1.24352514]
[1721225938859,6.2177,160.83,160.8,1.24352514]
[1721225939059,0.17,160.86,160.79,45.0]
[1721225939280,6.2182,160.82,160.79,45.0]
[1721225939875,6.2185,160.81,160.78,15.2922]
[1721225940100,6.2176,160.84,160.78,15.2922]
[1721225940253,0.17,160.86,160.78,15.2922]
[1721225940458,0.34,160.86,160.78,15.2922]
[1721225940662,6.2178,160.83,160.78,21.5116]
[1721225940867,6.2171,160.85,160.8,6.2188]
[1721225941178,0.17,160.86,160.81,1.24352706]
[1721225941556,6.2172,160.85,160.81,1.24352706]
[1721225941757,49.74,160.88,160.79,60.5476]
[1721225942152,65.2798,160.88,160.79,60.5476]
[1721225942556,65.2798,160.88,160.79,45.0]
[1721225942756,6.2178,160.83,160.79,45.0]
[1721225942959,6.2174,160.84,160.8,1.24353754]
[1721225943289,6.2174,160.84,160.79,66.7672]
[1721225943490,6.2171,160.85,160.8,7.46221581]
[1721225943660,20.0,160.88,160.81,15.5457]
[1721225943984,6.2171,160.85,160.81,15.5457]
[1721225944491,6.2174,160.84,160.8,6.1625]
[1721225945485,15.5388,160.89,160.8,6.1625]
[1721225945486,6.2169,160.85,160.8,12.3812]
[1721225946057,6.2173,160.84,160.8,6.1625]
[1721225946682,6.2185,160.81,160.8,6.1625]
[1721225946991,6.2182,160.82,160.8,6.1625]
[1721225947285,6.2178,160.83,160.8,6.1625]
[1721225947456,6.2177,160.83,160.8,6.1625]
[1721225948266,0.17,160.85,160.81,1.24353679]
[1721225948480,29.91,160.88,160.8,6.1625]
[1721225948673,6.2174,160.84,160.8,6.1625]
[1721225948879,15.5392,160.89,160.81,15.9617]
[1721225949179,6.2142,160.93,160.83,18.71]
[1721225949372,6.2145,160.92,160.86,6.2165]
[1721225949581,6.2147,160.91,160.88,15.9617]
[1721225949757,210.618689,160.98,160.89,1.24295325]
[1721225949758,15.53,160.98,160.89,1.24295325]
[1721225950092,15.53,160.98,160.88,43.8554]
[1721225950093,6.2136,160.94,160.88,43.8554]
[1721225950255,6.2136,160.94,160.89,7.45805761]
[1721225950457,6.213,160.96,160.9,7.45762722]
[1721225950656,36.78644254,160.99,160.91,6.2146]
[1721225950887,6.2129,160.96,160.91,6.2146]
[1721225951059,6.2131,160.95,160.9,21.752]
[1721225951270,36.78644254,160.99,160.91,7.45715664]
[1721225951271,6.2128,160.96,160.91,7.45715664]
[1721225951723,29.74,160.99,160.91,1.24265664]
[1721225951894,6.212,160.98,160.93,6.2138]
[1721225952100,6.212,160.98,160.94,1.24251428]
[1721225952312,6.2124,160.97,160.9,15.5371]
[1721225952498,6.2124,160.97,160.91,52.45684751]